Cogmind - Beta 16.1 @@@ ROGUE MODE // 2026.03.09 @ 14:27:13 Player: laeb2 Result: Destroyed self with Fusion Bomb Launcher Performance ------------- Evolutions (8) 4000 Regions Visited (24) 4800 Robots Destroyed (393) 1965 Value Destroyed (23897) 23897 Prototype IDs (56) 1120 Alien Tech Used (0) 0 Bonus (19218) 19218 TOTAL SCORE: 55000 Bonus ------- High Alert Combat Kills 11747 Follower Combat Kills 2008 Entered Garrisons 1400 Used RIF Installer 4000 Aligned with FarCom 300 Friendly Fire -237 Cogmind --------- Core Integrity 0/1450 Matter 281/300 Energy 90/100 System Corruption 68% Temperature Cool (9) Movement Core (1000) Ox19 Location -2/Research Parts ------- > --- POWER (2) -------- (None) > --- PROPULSION (4) --- (None) > --- UTILITY (13) ----- High-capacity Storage Unit Advanced Melee Analysis Suite Advanced Target Analyzer Advanced Target Analyzer Advanced Target Analyzer Nanoactuators Nanoactuators Graphene Brace (fused) Relay Coupler [Brawler] (28) Relay Coupler [Sentry] (31) > --- WEAPON (4) ------- Fusion Bomb Launcher Advanced Remote Datajack > --- INVENTORY (20) --- Advanced Heat Sink Advanced Heat Sink Matter Compressor (250) Precision Energy Filter Graphene Brace Relay Coupler [NC] (32) Relay Coupler [Specialist] (20) Relay Coupler [Heavy] (16) Relay Coupler [Proto] (9) Phase Gun Nova Cannon Heavy Machine Gun KE Penetrator Advanced Remote Datajack Improved Plasma Cutter Peak State ------------ > --- POWER ------------ Micro Antimatter Reactor Light Quantum Reactor > --- PROPULSION ------- High-density Centrium Heavy Treads High-density Centrium Heavy Treads > --- UTILITY ---------- Advanced Heat Sink High-capacity Storage Unit Advanced Target Analyzer Advanced Target Analyzer Experimental Core Analyzer Centrium Light Armor Plating Centrium Light Armor Plating Centrium Light Armor Plating Graphene Brace Graphene Brace Relay Coupler [Swarmer] Relay Coupler [Sentry] Relay Coupler [Hunter] > --- WEAPON ----------- Nova Cannon KE Penetrator Heavy Hardcell Cannon > --- INVENTORY -------- Advanced Heat Sink Matter Compressor Advanced Targeting Computer Relay Coupler [NC] Relay Coupler [Brawler] Relay Coupler [Specialist] Relay Coupler [Heavy] Relay Coupler [Proto] Phase Gun Phase Gun Cooled Phase Gun Heavy Machine Gun Fusion Bomb Launcher Advanced Remote Datajack Advanced Remote Datajack Improved Plasma Cutter Plasma Lance [Rating: 182] Favorites ----------- Power Neutrino Core Engine Cooled Ion Engine Power Core Neutrino Core Reactor Light Antimatter Reactor Propulsion Improved Heavy Treads Treads Improved Heavy Treads Leg Myomer Leg Wheel Compact Wheel Utility Experimental Core Analyzer Device Experimental Heat Sink Storage Huge Storage Unit Processor Experimental Core Analyzer Hackware Relay Coupler [NC] Protection Centrium Light Armor Plating Weapon Helical Railgun Energy Gun Cooled Phase Gun Energy Cannon Heavy Proton Cannon Ballistic Gun Helical Railgun Ballistic Cannon Heavy Linear Accelerator Launcher Precision Grenade Launcher Special Weapon Improved Remote Datajack Impact Weapon Impact Mace Slashing Weapon Chainsword Piercing Weapon Plasma Lance Build | -11 -10 -10 -9 -9 -9 -8 -8 -8 -8 -8 -8 -6 -6 -6 -6 -5 -5 -5 -5 -4 -4 -3 -3 -2 ------- Run | Yrd Mat Min Mat Min Exi Min Mat Sto Gar Rec Scr Fac Gar Fac Gar Fac Gar Fac Gar Fac Gar Res Gar Res Slots Evolved 16 | . . . 2 . . . 2 . . . . 4 . . . 2 . . . 2 . 2 . 2 Power 1 | . . . . . . . . . . . . . . . . . . . . 1 . . . . Propulsion 2 | . . . 1 . . . . . . . . 1 . . . . . . . . . . . . Utility 11 | . . . . . . . 1 . . . . 3 . . . 2 . . . 1 . 2 . 2 Weapon 2 | . . . 1 . . . 1 . . . . . . . . . . . . . . . . . Parts Attached 287 | 6 2 8 10 . 1 1 4 4 1 3 3 14 37 1 8 6 18 4 26 8 17 11 38 56 Power 32 | 1 . 1 2 . . . . . . . 1 1 2 . . 1 2 1 6 2 . 1 3 8 Engine 9 | 1 . 1 2 . . . . . . . 1 1 1 . . . . . 2 . . . . . Core 8 | . . . . . . . . . . . . . . . . . . 1 3 2 . . 1 1 Reactor 15 | . . . . . . . . . . . . . 1 . . 1 2 . 1 . . 1 2 7 Propulsion 53 | 2 . . 2 . . 1 . 1 . 2 2 3 9 . 3 2 3 . 3 . 1 1 11 7 Treads 29 | 2 . . 1 . . 1 . 1 . . 1 2 7 . 2 . 2 . 3 . 1 1 . 5 Leg 13 | . . . . . . . . . . . . . . . . . . . . . . . 11 2 Wheel 11 | . . . 1 . . . . . . 2 1 1 2 . 1 2 1 . . . . . . . Hover . | . . . . . . . . . . . . . . . . . . . . . . . . . Flight . | . . . . . . . . . . . . . . . . . . . . . . . . . Utility 104 | 1 2 . 1 . . . 1 . 1 1 . 4 13 . 4 1 9 1 7 4 12 5 10 27 Device 33 | . 2 . . . . . . . 1 . . 1 5 . 1 . 1 . 2 . 2 3 4 11 Storage 4 | 1 . . 1 . . . . . . 1 . . . . . . . . . . . . 1 . Processor 23 | . . . . . . . 1 . . . . 3 4 . . 1 1 . . 1 3 . . 9 Hackware 22 | . . . . . . . . . . . . . . . 1 . 2 1 4 1 6 1 3 3 Protection 22 | . . . . . . . . . . . . . 4 . 2 . 5 . 1 2 1 1 2 4 Artifact . | . . . . . . . . . . . . . . . . . . . . . . . . . Weapon 98 | 2 . 7 5 . 1 . 3 3 . . . 6 13 1 1 2 4 2 10 2 4 4 14 14 Energy Gun 26 | 2 . 3 . . 1 . 2 1 . . . . 2 1 1 1 . . 3 . 1 . 3 5 Energy Cannon 14 | . . . . . . . . 1 . . . . 2 . . 1 1 1 2 . . 2 3 1 Ballistic Gun 33 | . . 2 5 . . . 1 1 . . . 2 4 . . . . . 2 2 2 1 6 5 Ballistic Cannon 9 | . . 1 . . . . . . . . . . 1 . . . 1 . 2 . . 1 2 1 Launcher 8 | . . 1 . . . . . . . . . 3 3 . . . . . . . . . . 1 Special Weapon 4 | . . . . . . . . . . . . . . . . . 1 . 1 . 1 . . 1 Impact Weapon 1 | . . . . . . . . . . . . . . . . . . 1 . . . . . . Slashing Weapon 1 | . . . . . . . . . . . . 1 . . . . . . . . . . . . Piercing Weapon 2 | . . . . . . . . . . . . . 1 . . . 1 . . . . . . . Special Melee Weapon . | . . . . . . . . . . . . . . . . . . . . . . . . . Unidentified Prototypes 31 | . . . 1 . . . 2 3 . . . 2 7 1 . 3 1 2 . 1 2 4 . 2 Corrupted Parts 1 | . 1 . . . . . . . . . . . . . . . . . . . . . . . System Corruption 2 | . 2 . . . . . . . . . . . . . . . . . . . . . . . Parts Lost 130 | . . 3 1 . . . . 1 . 1 2 3 20 . 2 . 9 . 13 . 1 2 20 52 Power 17 | . . 1 . . . . . . . . . 1 1 . . . 1 . 4 . . . 2 7 Propulsion 28 | . . . 1 . . . . 1 . 1 . 1 9 . 1 . 1 . 2 . 1 . 4 6 Utility 43 | . . . . . . . . . . . . 1 3 . . . 5 . 3 . . 2 5 24 Weapon 42 | . . 2 . . . . . . . . 2 . 7 . 1 . 2 . 4 . . . 9 15 Highest Loss Streak 14 | . . 3 1 . . . . 1 . 1 2 2 7 . 1 . 2 . 5 . 1 2 11 14 To Critical Strikes . | . . . . . . . . . . . . . . . . . . . . . . . . . Average Backups 20 | 2 5 7 8 9 13 14 13 14 15 19 24 24 24 25 24 25 23 22 22 23 24 23 16 17 Power 1 | 1 1 1 1 1 3 4 4 4 3 3 3 2 2 1 1 1 . 1 . . 1 1 . . Propulsion 1 | . . . . . . . . . 1 4 7 4 . 1 1 1 2 2 1 1 . . 2 1 Utility 11 | . 2 4 4 4 4 5 5 4 4 6 7 10 11 17 17 15 13 13 13 14 14 13 5 9 Weapon 5 | 1 1 2 3 4 5 5 4 5 5 5 6 6 9 5 4 4 4 3 5 5 6 7 8 5 Tool/Special . | . . . . . . . . . . . . . . . . . . . . . . . . . Unused Backups 83 | . 2 . 2 . . 1 . 1 1 . 1 6 7 . . 4 10 . 15 1 8 1 10 13 Power 11 | . 1 . 2 . . . . . 1 . . 1 3 . . 1 . . 1 . . . 1 . Propulsion 7 | . . . . . . . . . . . 1 1 . . . . . . 1 . . . 3 1 Utility 42 | . 1 . . . . . . . . . . 2 1 . . 3 9 . 5 1 5 1 5 9 Weapon 20 | . . . . . . 1 . 1 . . . 2 3 . . . . . 8 . 3 . 1 1 Tool/Special 3 | . . . . . . . . . . . . . . . . . 1 . . . . . . 2 Average Slot Usage (%) 87 | . 100 98 97 100 92 88 89 89 90 100 100 91 87 93 85 91 86 81 81 82 86 85 88 82 Engine 2 | . 14 13 11 11 11 11 9 9 9 9 9 5 1 . . . . . . . . . . . Core 2 | . . . . . . . . . . . . . . . . . . . 3 10 10 8 3 1 Reactor 2 | . . . . . . . . . . . . . 3 6 6 5 4 5 . . . . 3 4 Treads 11 | . 28 28 21 22 22 22 18 17 18 11 9 5 18 20 9 7 9 11 11 10 9 9 1 6 Leg 1 | . . . . . . . . . . . . . . . . . . . . . . . 14 1 Wheel 2 | . . . 9 11 11 11 9 9 9 15 18 20 2 . 4 8 3 . . . . . . . Device 10 | . 14 14 11 11 11 11 9 9 9 9 9 4 4 6 6 5 9 7 7 5 9 18 17 16 Storage 5 | . 14 14 11 11 11 11 9 9 9 9 9 6 6 6 6 5 5 5 5 5 5 4 3 4 Processor 14 | . . . . . . . 8 9 9 9 9 20 20 20 14 15 13 17 17 15 16 19 19 15 Hackware 2 | . . . . . . . . . . . . . . . . . . 2 7 5 3 3 4 7 Protection 5 | . . . . . . . . . . . . . 4 6 11 15 15 10 3 8 8 4 . 7 Energy Gun 4 | . 28 6 3 . 6 11 13 18 17 9 9 . 4 6 8 9 1 . 3 . 1 . 4 4 Energy Cannon 2 | . . . . . . . . 1 9 9 9 1 . . . 1 4 2 4 7 . . . . Ballistic Gun 10 | . . 13 24 33 19 11 13 7 1 18 18 19 10 13 13 8 6 . 7 10 16 12 7 7 Ballistic Cannon 1 | . . 6 5 . . . . . . . . . 1 . . . 3 5 1 . . 2 . 1 Peak Build Rating 182 | 6 10 11 17 17 31 32 40 41 44 32 34 60 109 102 108 115 137 137 129 120 141 175 175 182 Average Rating 104 | 4 7 10 16 17 25 31 38 39 40 31 31 48 78 97 101 110 118 131 111 116 127 164 142 161 On Entrance 69 | . 6 10 11 17 17 31 32 39 41 32 31 29 60 102 97 106 111 137 129 106 118 141 175 149 Avg Prop Armor Cover (%) 13 | . . . 15 16 17 18 16 16 18 10 8 7 15 . 11 10 9 . . . . . 11 7 Naked Turns . | . . . . . . . . . . . . . . . . . . . . . . . . . Heaviest Build 170 | 12 13 15 38 38 40 40 43 44 44 102 104 108 126 122 125 135 154 142 149 170 155 167 153 121 Greatest Support 180 | 40 40 40 40 16 16 16 16 16 16 48 32 48 120 110 126 126 150 150 150 145 145 140 130 180 Greatest Overweight (x) 29 | . . . 2 2 2 2 2 2 2 6 4 2 29 1 4 8 4 . 1 1 1 1 4 1 Average Overweight (x) 1 | . . . 1 2 1 2 2 2 2 3 3 2 1 1 3 3 1 . . 1 . 1 . . Largest Inventory Capacity 25 | 8 8 8 15 15 15 15 15 15 15 25 25 25 25 25 25 25 25 25 25 25 25 25 25 20 Average Capacity 22 | 6 8 8 10 15 15 15 15 15 15 24 25 25 25 25 25 25 25 25 25 25 25 25 19 20 Most Carried 25 | 5 8 8 9 9 15 15 15 15 15 24 25 25 25 25 25 25 25 25 25 25 25 25 25 20 Average Carried 21 | 2 5 7 8 9 13 14 13 14 14 19 24 24 24 25 24 24 24 24 24 24 24 24 18 19 Final Capacity 25 | 8 8 8 15 15 15 15 15 15 15 25 25 25 25 25 25 25 25 25 25 25 25 25 20 20 Final Carried 25 | 4 8 8 9 9 15 15 14 15 15 24 25 25 25 25 25 25 25 25 25 25 25 25 20 15 Class Distribution -------------------- 25% | Botlord-Gunner 17% | Bothacker-Tank 14% | Botlord-Tank 8% | Scavenger-Gunner 6% | Scavenger-Skirmisher 5% | Commander-Skirmisher 4% | Mutant 4% | Scavenger-Mutant 3% | Gunner 3% | Scavenger-Tank Dominant Class ---------------- Mutant | -10/Materials Mutant | -10/Mines Gunner | -9/Materials Gunner | -9/Mines Gunner | -9/Exiles Skirmisher | -8/Mines Skirmisher | -8/Materials Commander-Skirmisher | -8/Storage Commander-Skirmisher | -8/Garrison Commander-Skirmisher | -8/Recycling Commander-Gunner | -8/Scraptown Scavenger-Skirmisher | -6/Factory Scavenger-Skirmisher | -6/Garrison Bothacker-Tank | -6/Factory Bothacker-Tank | -6/Garrison Bothacker-Tank | -5/Factory Bothacker-Tank | -5/Garrison Botlord-Tank | -5/Factory Botlord-Gunner | -5/Garrison Botlord-Tank | -4/Factory Botlord-Gunner | -4/Garrison Botlord-Gunner | -3/Research Scavenger-Gunner | -3/Garrison Botlord-Tank | -2/Research Resources | -11 -10 -10 -9 -9 -9 -8 -8 -8 -8 -8 -8 -6 -6 -6 -6 -5 -5 -5 -5 -4 -4 -3 -3 -2 ----------- Run | Yrd Mat Min Mat Min Exi Min Mat Sto Gar Rec Scr Fac Gar Fac Gar Fac Gar Fac Gar Fac Gar Res Gar Res Matter Collected 13067 | 229 141 124 210 90 20 30 62 95 30 231 131 276 1770 68 339 107 1483 215 1618 225 1209 398 1669 2297 Remotely 483 | . . . . . . . . . . . . . . . . . . . . . . . . 483 Salvage Created 21693 | 110 250 186 272 36 . 72 158 346 529 1116 248 350 1931 204 981 107 2563 254 1375 270 1637 1145 1711 5842 Parts 956 | 9 12 17 24 3 . 8 6 15 17 30 21 11 93 8 44 2 109 12 59 10 82 54 77 233 Haulers Intercepted 7 | . . . 1 . . . . 2 . . . 1 . . . . . . . . . 2 . 1 Recyclers Shooed 14 | . 1 . 2 1 . . . 1 . 6 . . . . . . . . . . . . . 3 Parts Field Recycled . | . . . . . . . . . . . . . . . . . . . . . . . . . Retrieved Matter . | . . . . . . . . . . . . . . . . . . . . . . . . . Parts Self-Destructed . | . . . . . . . . . . . . . . . . . . . . . . . . . Prevented . | . . . . . . . . . . . . . . . . . . . . . . . . . Parts Restored . | . . . . . . . . . . . . . . . . . . . . . . . . . Kills | -11 -10 -10 -9 -9 -9 -8 -8 -8 -8 -8 -8 -6 -6 -6 -6 -5 -5 -5 -5 -4 -4 -3 -3 -2 ------- Run | Yrd Mat Min Mat Min Exi Min Mat Sto Gar Rec Scr Fac Gar Fac Gar Fac Gar Fac Gar Fac Gar Res Gar Res Combat Hostiles Destroyed 318 | . 5 10 8 1 . 3 3 3 11 2 . 6 38 2 15 . 40 3 29 5 27 15 25 67 Melee 23 | . . . . . . . . . . . . 1 4 . . . 2 . 1 . . . . 15 Guns 181 | . 5 4 2 1 . 3 3 2 9 . . 1 16 2 15 . 18 . 11 4 27 10 19 29 Cannons 62 | . . . . . . . . . 2 2 . . 2 . . . 16 3 15 1 . 5 5 11 AOE 47 | . . 6 6 . . . . 1 . . . 4 16 . . . 4 . . . . . . 10 Classes Destroyed 26 | 2 2 . 5 . . . . 1 1 . 4 . 5 . . . 1 . 2 . 1 1 . 1 Worker 12 | . . . 2 . . 1 . 1 . . 1 . . 1 . . . . . . . . . 6 Builder 10 | . . . 2 . . . . 2 . . . . . . . . . 1 . . . 1 . 4 Tunneler 3 | 3 . . . . . . . . . . . . . . . . . . . . . . . . Hauler 7 | . . . 1 . . . . 2 . . . 1 . . . . . . . . . 2 . 1 Recycler 25 | 1 1 . 3 . . . . . . 12 . . . . . 1 . 1 . . . . . 6 Mechanic 4 | . . . . . . . . . . . . . . . . . . . . . . . . 4 Operator 5 | . . . 1 . . . . 1 . . 2 . . . . . . . . 1 . . . . Watcher 3 | . . . . . . . . 1 . . . . . . . . . . 1 . . . . 1 Swarmer 68 | . 3 6 6 . . 3 . . . . . . 11 . 7 . 4 1 7 2 9 2 3 4 Cutter 4 | . . . . . . . . . . . . . . . . . . . . . 4 . . . Saboteur 4 | . . . . . . . . . . . . . 4 . . . . . . . . . . . Grunt 129 | . 2 4 . 1 . . 3 1 9 1 1 5 9 2 3 . 22 . 6 . 5 7 12 36 Brawler 4 | . . . . . . . . . . . . . . . . . 1 . . . . 1 . 2 Duelist 2 | . . . . . . . . . . . . . . . . . . . . . . 1 . 1 Protector 2 | . . . . . . . . . . . . . . . . . . . 1 . . . . 1 Sentry 28 | . . . 2 . . . . 2 . 2 . 1 4 . . . 3 . 5 1 3 . 3 2 Demolisher 1 | . . . . . . . . . . . . . . . . . . . 1 . . . . . Hunter 23 | . . . . . . . . . 2 . . . 1 . 2 . 3 . 1 2 3 2 7 . Programmer 41 | . . . . . . . . . . . . . 3 . 3 . 4 2 5 . 3 2 . 19 Behemoth 9 | . . . . . . . . . . . . . 3 . . . 1 . 3 . . . 1 1 Striker 4 | . . . . . . . . . . . . . 2 . . . 2 . . . . . . . Executioner 1 | . . . . . . . . . . . . . 1 . . . . . . . . . . . Scientist 1 | . . . . . . . . . . . 1 . . . . . . . . . . . . . Elite 1 | . . . . . . . . . . . 1 . . . . . . . . . . . . . Zionite 1 | . . . . . . . . . . . 1 . . . . . . . . . . . . . Tinkerer 1 | . . . . . . . . . . . 1 . . . . . . . . . . . . . Thug 1 | . . . . . . . . . . . . . . 1 . . . . . . . . . . Savage 1 | . . . . . . . . . . . . . . . . . . . . . . . . 1 Best Kill Streak 18 | 4 4 5 13 1 . 4 3 3 3 8 6 6 8 2 4 1 4 4 4 3 5 6 6 18 Combat Bots Only 15 | . 3 5 7 1 . 3 3 1 3 1 . 5 8 2 4 . 4 2 4 3 5 6 6 15 Max Kills in Single Turn 6 | 2 1 3 6 1 . 2 1 1 1 1 2 4 4 2 2 1 3 2 2 1 2 2 2 5 Gunslinging 1 | . . . . . . . . . . . . . . . . . . . 1 . 1 1 1 1 Exploded 4 | . . 3 4 . . . . 1 . . . 4 4 . . . 3 . . . . . . 4 Melee 1 | . . . . . . . . . . . . 1 1 . . . 1 . 1 . . . . 1 Uniques/NPCs Destroyed . | . . . . . . . . . . . . . . . . . . . . . . . . . Combat | -11 -10 -10 -9 -9 -9 -8 -8 -8 -8 -8 -8 -6 -6 -6 -6 -5 -5 -5 -5 -4 -4 -3 -3 -2 -------- Run | Yrd Mat Min Mat Min Exi Min Mat Sto Gar Rec Scr Fac Gar Fac Gar Fac Gar Fac Gar Fac Gar Res Gar Res Hostile Shots Fired 2335 | . 33 30 16 . . 5 5 4 21 18 27 36 266 . 55 . 115 14 227 46 98 63 534 722 Missed 597 | . 10 9 5 . . 1 1 2 3 4 5 9 66 . 18 . 31 2 39 17 26 11 179 159 Hits 1738 | . 23 21 11 . . 4 4 2 18 14 22 27 200 . 37 . 84 12 188 29 72 52 355 563 Melee 26 | . . . . . . . . . . . . . 2 . . . 10 . . . 2 2 . 10 Projectile 1712 | . 23 21 11 . . 4 4 2 18 14 22 27 198 . 37 . 74 12 188 29 70 50 355 553 Critical Strikes 89 | . . . 1 . . . . 1 . . 1 . 4 . 2 . 5 . 15 . 4 9 10 37 Actively Blocked 52 | . . . . . . . . . . . . . . . . . . . . . . 5 10 37 Part Disruptions 1 | . . . . . . . . . . . . . . . . . . . 1 . . . . . Damage Taken 34003 | . 205 271 135 . . 31 62 83 281 216 487 301 3742 20 569 . 1950 335 3843 658 1073 1151 4396 14194 Core 3623 | . 26 32 . . . . 13 . . 29 108 49 598 . 44 . 143 17 178 13 23 39 853 1458 Absorbed by Shields 813 | . . . . . . . . . . . . . 25 . 45 . 81 . 249 . 228 . 185 . Reduced by Siege Mode 1415 | . . . . . . . . . . . . . . . . . 121 . 370 12 48 29 . 835 Redirected to Shielding 18 | . . . . . . . . . . . . . . . 18 . . . . . . . . . Ignored by Resistances 945 | . . . . . . . . . . . . . . . 38 . . . . . . . 210 697 Core Remaining (%) 69 | 100 . 76 . . . 100 . . . . 72 . . . 18 . . . 66 . 96 . 31 . Volleys Fired 987 | 6 23 18 13 3 . 5 4 25 35 28 13 6 97 2 40 1 105 9 119 20 101 28 112 174 Largest 4 | 2 2 2 3 3 . 1 2 2 2 4 4 4 4 3 4 3 4 2 4 4 4 4 4 4 Hottest 280 | 80 80 80 121 69 . 23 84 124 124 170 170 112 212 151 206 242 280 168 266 199 172 139 224 260 Shots Fired 2206 | 12 46 31 35 9 . 10 18 62 94 108 50 19 187 7 99 3 246 16 224 54 219 63 232 362 Gun 1636 | 12 46 27 28 9 . 10 18 57 62 80 37 18 139 7 99 2 126 . 104 45 198 48 183 281 Cannon 478 | . . . 5 . . . . 5 32 28 13 . 32 . . 1 105 14 105 4 . 15 43 76 Launcher 30 | . . 4 2 . . . . . . . . 1 16 . . . 3 . . . . . . 4 Special 62 | . . . . . . . . . . . . . . . . . 12 2 15 5 21 . 6 1 Kinetic 1377 | . . 10 31 9 . 5 4 20 . 56 26 18 135 5 71 . 146 7 141 45 162 63 170 253 Thermal 588 | . . 2 2 . . 5 14 42 94 52 24 . 28 2 15 2 38 7 61 4 36 . 56 104 Explosive 30 | . . 4 2 . . . . . . . . 1 16 . . . 3 . . . . . . 4 Electromagnetic 149 | 12 46 15 . . . . . . . . . . 8 . 13 1 47 . 7 . . . . . Robot Hit Streak 34 | 4 8 5 8 3 . 7 9 12 28 16 10 16 28 4 7 9 32 8 34 16 24 31 30 32 Robot Miss Streak 7 | 2 4 3 1 1 . 1 2 3 4 2 3 2 4 2 5 . 2 1 2 2 3 2 2 7 Penetration Max 2 | . . . . . . . . . . . . . 2 . 1 . 1 . 1 1 2 1 1 2 Secondary Targets 34 | . 2 2 . . . . . . . . . . . . 2 . 1 . 2 1 8 2 6 8 Max Gunslinging Chain 2 | . 1 1 . . . . . . . . . . . . 1 . 1 . 1 1 2 1 2 1 Autonomous 66 | . . . . . . 5 10 12 39 . . . . . . . . . . . . . . . Shots Hit Robots 1629 | 7 25 17 24 6 . 9 13 43 58 63 30 17 156 6 68 3 194 10 169 41 157 50 157 306 Core Hits 788 | 2 9 14 22 2 . 4 6 13 23 20 13 17 88 6 34 1 89 5 58 15 71 27 63 186 Critical Kills 41 | . . . . . . . . 1 . . 1 . 7 2 3 . 2 . 5 1 8 3 1 7 Critical Parts Destroyed 31 | . . . . . . . . . . . . . 12 . 1 . 1 . 1 2 6 1 . 7 Critical Strikes 163 | . . . . . . . . 1 . 3 3 . 32 2 5 . 14 1 15 3 18 5 8 53 Burn 25 | . . . . . . . . . . 3 2 . 1 . . . 3 . 1 . 4 . 3 8 Meltdown 5 | . . . . . . . . 1 . . 1 . . . . . . . 2 . . . 1 . Destroy 71 | . . . . . . . . . . . . . 20 2 4 . 4 . 4 3 14 4 1 15 Blast 28 | . . . . . . . . . . . . . . . . . . 1 7 . . 1 3 16 Corrupt 4 | . . . . . . . . . . . . . 1 . . . 2 . 1 . . . . . Sever 16 | . . . . . . . . . . . . . 10 . 1 . 5 . . . . . . . Impale 14 | . . . . . . . . . . . . . . . . . . . . . . . . 14 Melee Attacks 247 | . . . . . . . . . . . . 4 45 3 25 1 32 . 9 . . . . 128 Impact . | . . . . . . . . . . . . . . . . . . . . . . . . . Slashing 110 | . . . . . . . . . . . . 4 45 3 25 1 32 . . . . . . . Piercing 137 | . . . . . . . . . . . . . . . . . . . 9 . . . . 128 Sneak Attacks 18 | . . . . . . . . . . . . 1 12 . . . 1 . . . . . . 4 Combat Hostiles 1 | . . . . . . . . . . . . . . . . . . . . . . . . 1 Follow-up Attacks . | . . . . . . . . . . . . . . . . . . . . . . . . . Damage Inflicted 54310 | 222 436 601 1381 86 . 206 334 1040 1371 1220 621 981 5352 99 2244 98 5995 434 5977 759 3833 2461 5000 13559 Guns 26903 | 81 346 183 345 86 . 206 334 835 1207 854 376 168 1486 99 1014 58 2001 . 1606 683 3833 1507 3250 6345 Cannons 13490 | . . . 46 . . . . 41 164 366 242 . 612 . . 40 2411 434 3704 76 . 954 1750 2650 Explosions 5859 | 141 90 418 990 . . . . 164 . . . 617 1359 . . . 325 . 41 . . . . 1714 Melee 8043 | . . . . . . . . . . . . 196 1895 . 1230 . 1258 . 626 . . . . 2838 Ramming 15 | . . . . . . . . . . . 3 . . . . . . . . . . . . 12 Kinetic 26614 | . . 50 358 86 . 78 17 243 . 487 223 168 1455 77 724 . 2457 206 3968 683 2974 2461 3247 6652 Thermal 12637 | 141 90 99 722 . . 128 317 633 1371 733 395 . 532 22 224 58 731 228 1182 76 859 . 1753 2343 Explosive 4783 | . . 342 301 . . . . 164 . . . 617 1279 . . . 325 . 41 . . . . 1714 Electromagnetic 2218 | 81 346 110 . . . . . . . . . . 191 . 66 40 1224 . 160 . . . . . Impact . | . . . . . . . . . . . . . . . . . . . . . . . . . Slashing 4579 | . . . . . . . . . . . . 196 1895 . 1230 . 1258 . . . . . . . Piercing 3464 | . . . . . . . . . . . . . . . . . . . 626 . . . . 2838 Highest Corruption 68 | . 2 2 . . . . . . . . . . 3 3 4 . 1 1 5 . 1 3 3 68 Average Corruption 6 | . 2 2 . . . . . . . . . . 2 3 3 . 1 1 2 . 1 2 3 31 Corruption Purged 12 | . . . . . . . . . . . . . . . . . . . 5 . . . . 7 Corruption Blocked . | . . . . . . . . . . . . . . . . . . . . . . . . . Effects 333 | . . 7 . . . . . . . . . . 52 12 15 . 5 5 52 . 5 9 49 122 Message Errors 66 | . . 2 . . . . . . . . . . 13 1 4 . 1 1 11 . . 4 8 21 Matter Fused 73 | . . . . . . . . . . . . . 9 2 3 . 2 1 12 . . 2 17 25 Heat Flow Errors 37 | . . 2 . . . . . . . . . . 6 1 2 . . . 5 . 2 1 6 12 Energy Discharges 40 | . . . . . . . . . . . . . 7 5 2 . 1 . 4 . 2 1 5 13 Parts Rejected 2 | . . . . . . . . . . . . . . . . . . . . . . 1 . 1 Parts Fused 9 | . . . . . . . . . . . . . . . 1 . . 1 3 . . . 1 3 Data Loss (minor) 31 | . . . . . . . . . . . . . 7 1 . . . 1 4 . 1 . 7 10 Data Loss (major) 17 | . . 1 . . . . . . . . . . 6 1 1 . . 1 2 . . . . 5 Misfires 15 | . . 1 . . . . . . . . . . 2 1 1 . . . 4 . . . . 6 Alerts 8 | . . . . . . . . . . . . . . . . . 1 . 1 . . . 3 3 Misdirections 8 | . . . . . . . . . . . . . . . . . . . . . . . . 8 Weapon Failures 27 | . . 1 . . . . . . . . . . 2 . 1 . . . 6 . . . 2 15 Overload Shots 56 | . . . . . . . . . . . . . . . . . . . . . 5 . 24 27 Effects 3 | . . . . . . . . . . . . . . . . . . . . . 1 . 2 . Energy Bleed 1 | . . . . . . . . . . . . . . . . . . . . . 1 . . . Heat Surge 2 | . . . . . . . . . . . . . . . . . . . . . . . 2 . Overflow Damage 1689 | 43 . 5 121 . . . . 9 . 17 . 69 146 . . . 64 47 293 . . 52 107 716 Projectiles 809 | . . . . . . . . . . 17 . . 26 . . . 61 47 293 . . 52 107 206 Explosions 374 | 43 . 5 121 . . . . 9 . . . 69 51 . . . 3 . . . . . . 73 Melee 506 | . . . . . . . . . . . . . 69 . . . . . . . . . . 437 Knockbacks 40 | . . . . . . . . . . . . . . . . . 4 . 7 . . 2 9 18 Impact . | . . . . . . . . . . . . . . . . . . . . . . . . . Kinetic 35 | . . . . . . . . . . . . . . . . . 4 . 6 . . 2 9 14 Secondary 5 | . . . . . . . . . . . . . . . . . . . 1 . . . . 4 Self-Inflicted Damage 314 | . . 31 . . . . . 52 . . 1 . 74 . . . . . . . . . . 156 Shots 6 | . . 1 . . . . . 1 . . . . 2 . . . . . . . . . . 2 Rammed 2 | . . . . . . . . . . . 1 . . . . . . . . . . . . 1 Targets Rammed 2 | . . . . . . . . . . . 1 . . . . . . . . . . . . 1 Kicked . | . . . . . . . . . . . . . . . . . . . . . . . . . Crushed . | . . . . . . . . . . . . . . . . . . . . . . . . . Highest Temperature 388 | 54 162 167 27 . . . . 26 33 72 198 9 355 90 258 69 291 12 388 174 151 106 290 349 Average Temperature 82 | 23 74 50 19 . . . . 26 11 26 60 5 84 60 47 37 100 5 82 76 48 28 110 101 Received Heat Transfer 6491 | . 48 111 45 . . . 36 36 108 54 298 117 1329 9 36 . 279 . 1075 36 183 169 245 2277 Effects 10 | . . . . . . . . . . . . . . . . . 1 . . . . . 2 7 Energy Bleed 1 | . . . . . . . . . . . . . . . . . 1 . . . . . . . Interference 8 | . . . . . . . . . . . . . . . . . . . . . . . 2 6 Matter Decay 1 | . . . . . . . . . . . . . . . . . . . . . . . . 1 Siege Activations 38 | . . . . . . . . . . . . . . . . . 8 1 12 1 3 2 1 10 Total Turns 2000 | . . . . . . . . . . . . . . . . . 525 11 931 14 75 28 4 412 Longest Duration 319 | . . . . . . . . . . . . . . . . . 232 11 319 14 27 15 4 139 Martial Activations . | . . . . . . . . . . . . . . . . . . . . . . . . . Shielding Activations . | . . . . . . . . . . . . . . . . . . . . . . . . . Robots Disrupted 1 | . 1 . . . . . . . . . . . . . . . . . . . . . . . Combat Hostiles 1 | . 1 . . . . . . . . . . . . . . . . . . . . . . . Robots Corrupted . | . . . . . . . . . . . . . . . . . . . . . . . . . Combat Hostiles . | . . . . . . . . . . . . . . . . . . . . . . . . . Parts Fried . | . . . . . . . . . . . . . . . . . . . . . . . . . Impact Corruptions . | . . . . . . . . . . . . . . . . . . . . . . . . . Robots Melted 8 | . . . . . . . . 1 . . 1 . . . . . . . 2 . 1 . 1 2 Combat Hostiles 5 | . . . . . . . . . . . . . . . . . . . 2 . . . 1 2 Parts Melted 26 | . . . . . . . . 3 2 2 1 . 2 . . . . 1 5 1 3 . 3 3 Heat Transferred 17824 | 200 100 150 524 . . 148 444 999 1917 1628 877 . 830 50 500 112 1202 300 1314 74 1274 . 2153 3028 Parts Sabotaged 8 | . . . . . . . . . . . . . 8 . . . . . . . . . . . Parts Stolen . | . . . . . . . . . . . . . . . . . . . . . . . . . Parts Stripped . | . . . . . . . . . . . . . . . . . . . . . . . . . Power Chain Reactions 5 | 2 1 1 . . . . . . . . . . 1 . . . . . . . . . . . Alert | -11 -10 -10 -9 -9 -9 -8 -8 -8 -8 -8 -8 -6 -6 -6 -6 -5 -5 -5 -5 -4 -4 -3 -3 -2 ------- Run | Yrd Mat Min Mat Min Exi Min Mat Sto Gar Rec Scr Fac Gar Fac Gar Fac Gar Fac Gar Fac Gar Res Gar Res Maximum Alert Level 5 | . . . 1 . . . . 1 3 2 . . 5 4 4 3 5 4 5 5 5 5 5 5 Low Security (%) 10 | 100 100 100 29 100 . 100 100 96 7 . . 100 2 . . . . . . . . . . . Level 1 2 | . . . 70 . . . . 3 6 16 . . 1 . . . 2 . . . . . . . Level 2 8 | . . . . . . . . . 46 83 . . 23 . . 91 14 . . . . . . . Level 3 15 | . . . . . . . . . 39 . . . 19 39 63 8 22 . 27 . . . . 15 Level 4 34 | . . . . . . . . . . . . . 31 60 36 . 33 100 30 16 41 12 58 58 Level 5 28 | . . . . . . . . . . . . . 21 . . . 27 . 41 83 58 87 41 26 High Security . | . . . . . . . . . . . . . . . . . . . . . . . . . Max Security . | . . . . . . . . . . . . . . . . . . . . . . . . . Peak Influence 3320 | 5 117 169 329 87 . 66 61 213 917 454 . 147 2150 1177 1362 714 2358 1296 3320 1743 2836 1779 2261 1991 Initial 1743 | . . 37 9 81 . . 21 25 133 412 . . 77 1128 762 714 354 1237 835 1743 1192 1595 1207 1271 Average 1250 | 1 34 68 196 60 . 20 6 50 653 418 . 28 1135 1105 1034 610 1292 1236 1781 1660 1848 1672 1541 1399 Influence Increases 17399 | 20 197 288 400 56 . 76 82 379 844 213 . 187 2273 341 640 7 2174 314 2795 247 1854 525 1374 2113 Destroy 0b10 Robot/C 7460 | . 100 200 200 40 . 60 60 120 400 80 . 120 760 180 340 . 860 160 720 160 760 320 500 1320 Destroy 0b10 Robot/NC 460 | 20 5 . 45 . . 5 . 35 5 60 . 5 15 25 20 5 15 15 15 5 20 25 5 115 Destroy Leader 880 | . 30 40 42 10 . 10 10 46 20 . . 32 30 50 40 . 40 42 50 40 30 44 50 224 Allied During Kill 881 | . . . 14 6 . . . 135 255 58 . . 8 23 13 . 17 70 42 17 166 24 8 25 Successful Hack 129 | . 12 . 16 . . . 11 14 14 . . . . 4 . . 7 . . . 28 . 23 . Disable Machine 375 | . . 15 45 . . . . 15 . 15 . 15 45 15 45 . 15 15 45 . 30 15 . 45 Anti-Garrison Action 5600 | . . . . . . . . . 100 . . . 1150 . 100 . 1100 . 1650 . 750 . 750 . Destroy Structure 1134 | . 5 33 38 . . 1 1 14 50 . . 15 145 44 67 2 90 12 198 10 25 82 38 264 Lose Combat Pursuer 480 | . 45 . . . . . . . . . . . 120 . 15 . 30 . 75 15 45 15 . 120 Influence Decreases 15299 | 20 100 360 215 229 37 20 77 235 132 753 377 76 234 1402 367 862 323 1479 668 1863 722 1751 723 2274 Entered New Map 9653 | . . 60 16 129 37 . 35 36 72 505 377 . 34 1022 327 648 153 1121 358 1577 512 1241 403 990 Time Decay 3496 | 20 100 270 189 100 . 20 42 189 . 238 . 76 . 380 . 214 . 318 . 246 . 410 . 684 Lost Part 1250 | . . 30 10 . . . . 10 . 10 . . 200 . 20 . 90 . 130 . 10 20 200 520 Lost Ally 900 | . . . . . . . . . 60 . . . . . 20 . 80 40 180 40 200 80 120 80 Squads Dispatched 54 | . 1 . 2 . . . 2 2 . . . 3 . 5 . 1 . 4 . 6 . 5 . 23 Investigation 4 | . 1 . 1 . . . 1 1 . . . . . . . . . . . . . . . . Extermination 14 | . . . . . . . . . . . . 1 . 2 . 1 . 1 . . . 2 . 7 Reinforcement 12 | . . . 1 . . . 1 1 . . . 1 . 1 . . . 1 . 1 . 1 . 4 Assault 18 | . . . . . . . . . . . . . . 2 . . . 2 . 3 . 2 . 9 Garrison 6 | . . . . . . . . . . . . 1 . . . . . . . 2 . . . 3 Intercept . | . . . . . . . . . . . . . . . . . . . . . . . . . Searches Triggered . | . . . . . . . . . . . . . . . . . . . . . . . . . Construction Impeded 1 | . . . . . . . . . . . . . . 1 . . . . . . . . . . Haulers Reinforced 3 | . . . . . . . . . . . . 1 . . . . . . . . . . . 2 Active Scanning Responses . | . . . . . . . . . . . . . . . . . . . . . . . . . Cargo Convoy Interrupts 1 | . . . . . . . . . . . . . . . . . . . . . . . . 1 Stealth | -11 -10 -10 -9 -9 -9 -8 -8 -8 -8 -8 -8 -6 -6 -6 -6 -5 -5 -5 -5 -4 -4 -3 -3 -2 --------- Run | Yrd Mat Min Mat Min Exi Min Mat Sto Gar Rec Scr Fac Gar Fac Gar Fac Gar Fac Gar Fac Gar Res Gar Res Distress Signals 15 | . 2 . 1 . . . 3 . . . . . . . . . . . . . . 2 . 7 Communications Jammed 18 | . . . . . . . . . . . . . . . . . . 8 9 1 . . . . Distress Signals 18 | . . . . . . . . . . . . . . . . . . 8 9 1 . . . . Times Spotted 449 | . 10 9 10 2 . 3 5 9 16 4 6 6 37 4 9 . 38 10 43 13 50 15 29 121 Peak Tracking Total 12 | . 3 5 5 2 . 3 3 3 3 1 12 5 10 3 4 1 4 3 11 7 7 6 5 12 Tactical Retreats 24 | . 3 . . . . . . . . . 1 . 6 . 1 . 2 . 3 1 2 1 . 4 Traps | -11 -10 -10 -9 -9 -9 -8 -8 -8 -8 -8 -8 -6 -6 -6 -6 -5 -5 -5 -5 -4 -4 -3 -3 -2 ------- Run | Yrd Mat Min Mat Min Exi Min Mat Sto Gar Rec Scr Fac Gar Fac Gar Fac Gar Fac Gar Fac Gar Res Gar Res Traps Triggered 45 | . . . 1 . . . . 1 7 . . . 9 . 5 . 3 1 7 1 6 . 3 1 Indirectly . | . . . . . . . . . . . . . . . . . . . . . . . . . Trap Hack Attempts . | . . . . . . . . . . . . . . . . . . . . . . . . . Triggered . | . . . . . . . . . . . . . . . . . . . . . . . . . Disarmed . | . . . . . . . . . . . . . . . . . . . . . . . . . Reprogrammed . | . . . . . . . . . . . . . . . . . . . . . . . . . Reused . | . . . . . . . . . . . . . . . . . . . . . . . . . Traps Extracted . | . . . . . . . . . . . . . . . . . . . . . . . . . Installed . | . . . . . . . . . . . . . . . . . . . . . . . . . Triggered . | . . . . . . . . . . . . . . . . . . . . . . . . . Machines | -11 -10 -10 -9 -9 -9 -8 -8 -8 -8 -8 -8 -6 -6 -6 -6 -5 -5 -5 -5 -4 -4 -3 -3 -2 ---------- Run | Yrd Mat Min Mat Min Exi Min Mat Sto Gar Rec Scr Fac Gar Fac Gar Fac Gar Fac Gar Fac Gar Res Gar Res Machines Disabled 63 | . . 1 3 . . . . 1 1 1 1 1 12 1 5 . 7 1 11 . 8 1 5 3 Max in Single Turn 3 | . . 1 3 . . . . 1 1 1 . 1 2 . 1 . 1 1 2 . 1 1 1 1 Garrison Relay 25 | . . . . . . . . . 1 . . . 4 . 2 . 4 . 4 . 5 . 5 . Phase Generator 2 | . . . . . . . . . . . . . 1 . . . . . 1 . . . . . Machines Repaired . | . . . . . . . . . . . . . . . . . . . . . . . . . Machines Dismantled . | . . . . . . . . . . . . . . . . . . . . . . . . . Machines Sabotaged . | . . . . . . . . . . . . . . . . . . . . . . . . . Overloaded Fab Kills . | . . . . . . . . . . . . . . . . . . . . . . . . . Hacking | -11 -10 -10 -9 -9 -9 -8 -8 -8 -8 -8 -8 -6 -6 -6 -6 -5 -5 -5 -5 -4 -4 -3 -3 -2 --------- Run | Yrd Mat Min Mat Min Exi Min Mat Sto Gar Rec Scr Fac Gar Fac Gar Fac Gar Fac Gar Fac Gar Res Gar Res Machines Accessed 33 | . 1 . 2 . 1 . 1 4 1 1 . 2 . 2 1 1 3 2 . 2 2 2 5 . Terminals 20 | . 1 . 1 . . . 1 3 1 1 . 1 . . 1 . 3 . . . 2 . 5 . Fabricators . | . . . . . . . . . . . . . . . . . . . . . . . . . Repair Stations . | . . . . . . . . . . . . . . . . . . . . . . . . . Recycling Units . | . . . . . . . . . . . . . . . . . . . . . . . . . Scanalyzers 5 | . . . 1 . . . . . . . . . . 1 . . . 1 . 1 . 1 . . Garrison Access 7 | . . . . . . . . 1 . . . 1 . 1 . 1 . 1 . 1 . 1 . . Total Hacks 69 | . 2 . 10 . 1 . 5 13 3 3 . 3 . 5 3 1 4 3 . 2 2 3 6 . Successful 39 | . 2 . 8 . 1 . 3 7 1 . . 1 . 4 . 1 2 2 . 1 2 2 2 . Failed 28 | . . . 2 . . . 2 6 2 3 . 2 . 1 3 . 2 . . 1 . . 4 . Catastrophic 7 | . . . . . . . 1 1 1 . . . . . 1 . 1 . . . . . 2 . Database Lockouts 2 | . . . . . . . . . . . . . . . . . . 1 . . . 1 . . Manual 24 | . 2 . 7 . 1 . 4 5 . 3 . 2 . . . . . . . . . . . . Terminals 47 | . 2 . 7 . . . 5 10 3 3 . 2 . . 3 . 4 . . . 2 . 6 . Fabricators . | . . . . . . . . . . . . . . . . . . . . . . . . . Repair Stations . | . . . . . . . . . . . . . . . . . . . . . . . . . Recycling Units . | . . . . . . . . . . . . . . . . . . . . . . . . . Scanalyzers 12 | . . . 3 . . . . . . . . . . 4 . . . 2 . 1 . 2 . . Garrison Access 9 | . . . . . . . . 3 . . . 1 . 1 . 1 . 1 . 1 . 1 . . Terminal Hacks 16 | . 2 . 2 . 1 . 1 3 1 . . . . . . . 2 . . . 2 . 2 . Robot Analysis 3 | . 2 . 1 . . . . . . . . . . . . . . . . . . . . . Open Door 3 | . . . . . . . . 1 . . . . . . . . 1 . . . . . 1 . Emergency Access Points 3 | . . . . . . . . . 1 . . . . . . . 1 . . . 1 . . . Scanalyzer Index 1 | . . . . . . . . 1 . . . . . . . . . . . . . . . . Locate Traps 1 | . . . . . . . . 1 . . . . . . . . . . . . . . . . Zone Layout 2 | . . . 1 . . . 1 . . . . . . . . . . . . . . . . . Patrol Navigation 1 | . . . . . . . . . . . . . . . . . . . . . 1 . . . Security Stations 1 | . . . . . . . . . . . . . . . . . . . . . . . 1 . Proto ID Catalog 1 | . . . . . 1 . . . . . . . . . . . . . . . . . . . Fabricator Hacks . | . . . . . . . . . . . . . . . . . . . . . . . . . Repair Station Hacks . | . . . . . . . . . . . . . . . . . . . . . . . . . Recycling Unit Hacks . | . . . . . . . . . . . . . . . . . . . . . . . . . Scanalyzer 8 | . . . 3 . . . . . . . . . . 3 . . . 1 . . . 1 . . Retrieve Study 8 | . . . 3 . . . . . . . . . . 3 . . . 1 . . . 1 . . Garrison Access Hacks 7 | . . . . . . . . 1 . . . 1 . 1 . 1 . 1 . 1 . 1 . . Unlock Access 7 | . . . . . . . . 1 . . . 1 . 1 . 1 . 1 . 1 . 1 . . Unauthorized Hacks 8 | . . . 3 . . . 2 3 . . . . . . . . . . . . . . . . Terminals 8 | . . . 3 . . . 2 3 . . . . . . . . . . . . . . . . Track 1 | . . . 1 . . . . . . . . . . . . . . . . . . . . . Assimilate 1 | . . . . . . . . 1 . . . . . . . . . . . . . . . . Botnet 3 | . . . 1 . . . 1 1 . . . . . . . . . . . . . . . . Operators 3 | . . . 1 . . . 1 1 . . . . . . . . . . . . . . . . Fabricators . | . . . . . . . . . . . . . . . . . . . . . . . . . Repair Stations . | . . . . . . . . . . . . . . . . . . . . . . . . . Recycling Units . | . . . . . . . . . . . . . . . . . . . . . . . . . Scanalyzers . | . . . . . . . . . . . . . . . . . . . . . . . . . Garrison Access . | . . . . . . . . . . . . . . . . . . . . . . . . . Data Cores Recovered 1 | . . . . . . . . 1 . . . . . . . . . . . . . . . . Used . | . . . . . . . . . . . . . . . . . . . . . . . . . Hacking Detections 21 | . . . 1 . . . 1 3 1 1 . 2 . 2 1 . 1 1 . 2 2 . 3 . Full Trace Events 2 | . . . . . . . . 1 1 . . . . . . . . . . . . . . . Feedback Events . | . . . . . . . . . . . . . . . . . . . . . . . . . Feedback Blocked . | . . . . . . . . . . . . . . . . . . . . . . . . . Robot Schematics Acquired . | . . . . . . . . . . . . . . . . . . . . . . . . . Robots Built . | . . . . . . . . . . . . . . . . . . . . . . . . . Authchips . | . . . . . . . . . . . . . . . . . . . . . . . . . Time . | . . . . . . . . . . . . . . . . . . . . . . . . . Total Robot Build Rating . | . . . . . . . . . . . . . . . . . . . . . . . . . Part Schematics Acquired 17 | . . . . . . . . . . . . 4 7 3 2 1 . . . . . . . . Parts Built . | . . . . . . . . . . . . . . . . . . . . . . . . . Authchips . | . . . . . . . . . . . . . . . . . . . . . . . . . Time . | . . . . . . . . . . . . . . . . . . . . . . . . . Total Part Build Rating . | . . . . . . . . . . . . . . . . . . . . . . . . . Part Studies Acquired 8 | . . . 3 . . . . . . . . . . 3 . . . 1 . . . 1 . . Parts Repaired . | . . . . . . . . . . . . . . . . . . . . . . . . . Time . | . . . . . . . . . . . . . . . . . . . . . . . . . Parts Recycled . | . . . . . . . . . . . . . . . . . . . . . . . . . Recycled Matter . | . . . . . . . . . . . . . . . . . . . . . . . . . Retrieved Matter . | . . . . . . . . . . . . . . . . . . . . . . . . . Retrieved Components . | . . . . . . . . . . . . . . . . . . . . . . . . . Parts Scanalyzed . | . . . . . . . . . . . . . . . . . . . . . . . . . Part Schematics Acquired . | . . . . . . . . . . . . . . . . . . . . . . . . . Parts Damaged . | . . . . . . . . . . . . . . . . . . . . . . . . . Bothacking | -11 -10 -10 -9 -9 -9 -8 -8 -8 -8 -8 -8 -6 -6 -6 -6 -5 -5 -5 -5 -4 -4 -3 -3 -2 ------------ Run | Yrd Mat Min Mat Min Exi Min Mat Sto Gar Rec Scr Fac Gar Fac Gar Fac Gar Fac Gar Fac Gar Res Gar Res Used RIF Installer 8 | . . . . . . . . . 1 . . . 1 . . . 2 . 2 . 1 . 1 . Command Fork 1 | . . . . . . . . . . . . . . . . . . . 1 . . . . . Signal Jammer 1 | . . . . . . . . . . . . . 1 . . . . . . . . . . . Robot Detection 1 | . . . . . . . . . . . . . . . . . 1 . . . . . . . Patrol Navigation 1 | . . . . . . . . . . . . . . . . . . . . . 1 . . . Alert ID Control 1 | . . . . . . . . . . . . . . . . . . . . . . . 1 . Structural Interface 1 | . . . . . . . . . . . . . . . . . 1 . . . . . . . Autoassimilate 1 | . . . . . . . . . . . . . . . . . . . 1 . . . . . Robots Hacked 43 | . . . . . . . . . . . . . . . . . 5 . 9 3 16 1 6 3 Non-combat 1 | . . . . . . . . . . . . . . . . . . . . 1 . . . . Combat 42 | . . . . . . . . . . . . . . . . . 5 . 9 2 16 1 6 3 Autoassimilated 5 | . . . . . . . . . . . . . . . . . . . . . 1 1 1 2 Robot Hacks Applied 42 | . . . . . . . . . . . . . . . . . 6 . 9 5 15 . 6 1 find_fabricator 1 | . . . . . . . . . . . . . . . . . . . . 1 . . . . find_dsf 1 | . . . . . . . . . . . . . . . . . . . . 1 . . . . drop_inventory 1 | . . . . . . . . . . . . . . . . . . . . 1 . . . . spike_heat 1 | . . . . . . . . . . . . . . . . . . . . . 1 . . . overload_power 1 | . . . . . . . . . . . . . . . . . . . . . 1 . . . amplify_resonance 4 | . . . . . . . . . . . . . . . . . 1 . 1 . 2 . . . disable_weapons 1 | . . . . . . . . . . . . . . . . . . . . . 1 . . . go_dormant 2 | . . . . . . . . . . . . . . . . . 1 . . . . . 1 . overwrite_iff 16 | . . . . . . . . . . . . . . . . . 2 . 6 1 4 . 2 1 formatsys_high 14 | . . . . . . . . . . . . . . . . . 2 . 2 1 6 . 3 . Relay Couplers Released 104 | . . . . . . . . . 4 . . . 16 . 11 . 18 . 19 . 17 . 19 . Machine Destruction 100 | . . . . . . . . . 4 . . . 16 . 7 . 18 . 19 . 17 . 19 . Programmers 4 | . . . . . . . . . . . . . . . 4 . . . . . . . . . Attached 22 | . . . . . . . . . . . . . . . 1 . 2 1 4 1 6 1 3 3 Fabnet Peak Effective % . | . . . . . . . . . . . . . . . . . . . . . . . . . Robots Rewired 7 | . . . . . . . . . . . . . 1 . . . 2 . 1 . 1 . 2 . Allies Hacked . | . . . . . . . . . . . . . . . . . . . . . . . . . Hacks Repelled . | . . . . . . . . . . . . . . . . . . . . . . . . . Allies | -11 -10 -10 -9 -9 -9 -8 -8 -8 -8 -8 -8 -6 -6 -6 -6 -5 -5 -5 -5 -4 -4 -3 -3 -2 -------- Run | Yrd Mat Min Mat Min Exi Min Mat Sto Gar Rec Scr Fac Gar Fac Gar Fac Gar Fac Gar Fac Gar Res Gar Res Total Allies 59 | . . 1 . 2 . . . 10 . . . . 1 . . . 8 . 9 2 13 1 9 3 Largest Group 10 | . . 1 1 2 2 . . 10 10 7 6 . 1 1 1 . 2 2 2 2 3 4 3 2 Highest-Rated Group 290 | . . 31 31 51 51 . . 173 170 122 106 . 116 116 116 . 198 198 148 105 174 290 141 69 Highest-Rated Ally 148 | . . 31 31 31 31 . . 29 29 29 29 . 116 116 116 . 99 99 148 58 99 116 58 69 Total Orders 4 | . . . . . . . . . . . . . . . . . . . . . 2 . . 2 STAY 2 | . . . . . . . . . . . . . . . . . . . . . 1 . . 1 FOLLOW 2 | . . . . . . . . . . . . . . . . . . . . . 1 . . 1 Ally Attacks 370 | . . . 5 2 . . . 19 42 11 59 . 1 15 6 . 28 18 77 9 44 14 16 4 Total Damage 8189 | . . . 42 42 . . . 228 526 111 534 . . 987 290 . 570 529 1893 219 1061 593 467 97 Kills 73 | . . . 2 1 . . . 3 10 2 7 . . 12 2 . 3 6 8 3 11 3 . . Allies Corrupted 4 | . . . . . . . . . . . . . . . . . 1 2 . . . 1 . . Allies Melted 5 | . . . . . . . . . . . 2 . . . . . 1 . 1 . . . . 1 Intel | -11 -10 -10 -9 -9 -9 -8 -8 -8 -8 -8 -8 -6 -6 -6 -6 -5 -5 -5 -5 -4 -4 -3 -3 -2 ------- Run | Yrd Mat Min Mat Min Exi Min Mat Sto Gar Rec Scr Fac Gar Fac Gar Fac Gar Fac Gar Fac Gar Res Gar Res Active Infowar (turns) 401 | . 369 . . . . . . . . . . . 1 . . . . . . . 31 . . . Optics 31 | . . . . . . . . . . . . . . . . . . . . . 31 . . . Terrain 1 | . . . . . . . . . . . . . 1 . . . . . . . . . . . Seismic 369 | . 369 . . . . . . . . . . . . . . . . . . . . . . . Robot Analysis Total 3 | . 2 . 1 . . . . . . . . . . . . . . . . . . . . . Derelict Logs Recovered 1 | . . 1 . . . . . . . . . . . . . . . . . . . . . . Drone Launches . | . . . . . . . . . . . . . . . . . . . . . . . . . Drone Recoveries . | . . . . . . . . . . . . . . . . . . . . . . . . . Exploration | -11 -10 -10 -9 -9 -9 -8 -8 -8 -8 -8 -8 -6 -6 -6 -6 -5 -5 -5 -5 -4 -4 -3 -3 -2 ------------- Run | Yrd Mat Min Mat Min Exi Min Mat Sto Gar Rec Scr Fac Gar Fac Gar Fac Gar Fac Gar Fac Gar Res Gar Res Turns Passed 27493 | 85 370 592 406 218 436 118 297 525 659 512 477 420 3049 883 1106 445 3112 704 3874 529 2516 997 2437 2726 Spaces Moved 10967 | 45 150 330 232 160 356 85 223 298 395 255 280 272 1089 376 385 228 897 365 1217 180 844 319 1228 758 Core 67 | 17 . . . . . . . . . . . . 1 . . . . . . . . . 49 . Treads 6246 | 28 150 330 41 . . . . . . . . . 866 376 90 43 658 365 1217 180 844 319 136 603 Legs 1198 | . . . . . . . . . . . . . . . . . . . . . . . 1043 155 Wheels 3456 | . . . 191 160 356 85 223 298 395 255 280 272 222 . 295 185 239 . . . . . . . Hover . | . . . . . . . . . . . . . . . . . . . . . . . . . Flight . | . . . . . . . . . . . . . . . . . . . . . . . . . Fastest Speed 50 | 50 160 160 105 120 105 120 120 120 120 120 128 120 120 213 160 150 150 160 160 240 160 225 50 117 Average Speed 172 | 118 160 160 127 120 119 120 120 120 120 142 134 120 213 229 165 152 193 160 176 240 238 242 148 163 Slowest Speed 1500 | 160 160 160 240 120 120 120 120 120 120 180 135 120 1500 240 213 210 240 160 240 240 240 245 260 240 Overloaded Moves . | . . . . . . . . . . . . . . . . . . . . . . . . . Propulsion Burnouts . | . . . . . . . . . . . . . . . . . . . . . . . . . Robots Hopped . | . . . . . . . . . . . . . . . . . . . . . . . . . Potential Cave-ins 33 | . . . . . . . . . . . . . . . . . . . . . . . . 33 Cave-ins Triggered 6 | . . . . . . . . . . . . . . . . . . . . . . . . 6 Exploration Rate (%) 43 | 4 30 57 26 45 77 41 25 56 70 66 28 9 72 12 48 9 88 11 90 6 94 12 95 15 Regions Visited 24 Branch Regions 7 Pre-discovered Areas 1 | . . 1 . . . . . . . . . . . . . . . . . . . . . . Known Exits Taken 7 | . . . . . . . . 1 . . . 1 . 1 . 1 . 1 . 1 . 1 . . Unknown Exits Taken 10 | 1 1 1 1 1 1 1 1 . . 1 1 . . . . . . . . . . . . . Scrap Searched 7 | . . 1 . 1 . 2 . . . . 3 . . . . . . . . . . . . . Spaces Dug 66 | . . . . . . . . . . . . . . 3 1 1 8 . 1 . 2 3 1 46 Terrain Destroyed 726 | 2 5 40 46 . . 1 . 14 . . . 17 204 3 15 1 45 3 94 9 20 29 22 156 Melee 33 | . . . . . . . . . . . . . . 3 1 1 2 . . . . . . 26 Projectile 213 | . . . 1 . . 1 . 1 . . . . 12 . 12 . 42 3 19 9 17 29 20 47 AOE 472 | 2 5 40 45 . . . . 13 . . . 17 192 . . . 1 . 74 . . . . 83 Terrain Rammed . | . . . . . . . . . . . . . . . . . . . . . . . . . Walls Destroyed . | . . . . . . . . . . . . . . . . . . . . . . . . . Machines Disabled . | . . . . . . . . . . . . . . . . . . . . . . . . . Actions | -11 -10 -10 -9 -9 -9 -8 -8 -8 -8 -8 -8 -6 -6 -6 -6 -5 -5 -5 -5 -4 -4 -3 -3 -2 --------- Run | Yrd Mat Min Mat Min Exi Min Mat Sto Gar Rec Scr Fac Gar Fac Gar Fac Gar Fac Gar Fac Gar Res Gar Res Total 17580 | 64 235 362 318 180 366 98 245 416 525 338 352 345 1589 386 737 321 2059 465 2728 240 1200 493 1655 1863 Wait 4263 | . 52 . 42 18 1 3 9 72 39 41 45 25 222 . 237 65 934 75 1278 16 176 113 129 671 Move 10947 | 44 149 329 231 159 355 84 222 298 394 254 279 272 1087 376 384 228 896 365 1216 180 843 319 1226 757 Hop . | . . . . . . . . . . . . . . . . . . . . . . . . . Pick Up 311 | 8 7 3 7 . 6 2 3 5 3 10 5 12 42 . 5 8 23 1 39 7 23 8 45 39 Fast Attach 100 | 2 . 2 5 . . 1 . 1 . . . 6 9 2 3 1 9 6 6 2 4 5 22 14 Attach 163 | 4 1 3 1 . 1 . 4 1 2 1 2 5 30 . 3 2 10 . 17 4 10 6 15 41 Detach 21 | . . . . . 2 . . . . . . . 3 . . . 1 . 1 1 5 1 4 3 Swap 151 | . 1 5 7 . . . 1 2 1 3 2 5 21 1 4 8 17 3 10 5 12 3 21 19 Drop 226 | . 2 2 12 . 1 3 2 4 3 1 5 10 23 2 7 7 28 6 28 5 18 10 33 14 Fire 987 | 6 23 18 13 3 . 5 4 25 35 28 13 6 97 2 40 1 105 9 119 20 101 28 112 174 Melee 247 | . . . . . . . . . . . . 4 45 3 25 1 32 . 9 . . . . 128 Ram 2 | . . . . . . . . . . . 1 . . . . . . . . . . . . 1 Kick . | . . . . . . . . . . . . . . . . . . . . . . . . . Crush 1 | . . . . . . . . . . . . . . . . . . . . . . . . 1 Escape Stasis 114 | . . . . . . . . 8 48 . . . 7 . 29 . 4 . 4 . 8 . 5 1 Rewire 47 | . . . . . . . . . . . . . 3 . . . . . 1 . . . 43 . Trap . | . . . . . . . . . . . . . . . . . . . . . . . . . Miscellaneous . | . . . . . . . . . . . . . . . . . . . . . . . . . Route ------- -11/Scrapyard -10/Materials -10/Mines -9/Materials -9/Mines -9/Exiles -8/Mines -8/Materials (discovered 2 exits: *Sto x2) -8/Storage -8/Garrison (discovered 2 exits: *Rec x2) -8/Recycling (discovered 2 exits: *Fac / [*Scr]) -8/Scraptown -6/Factory (discovered 2 exits: *Fac / Gar) -6/Garrison (discovered 2 exits: *Fac x2) -6/Factory -6/Garrison -5/Factory -5/Garrison (discovered 3 exits: *Fac x3) -5/Factory -5/Garrison (discovered 3 exits: *Fac x3) -4/Factory -4/Garrison (discovered 3 exits: *Res x3) -3/Research -3/Garrison (discovered 3 exits: [*Res x3]) -2/Research (discovered 1 exit: *Qua) History --------- Turn | Location | Event 16 | -11/Scrapyard | Discovered new exit (range 15) 86 | -11/Scrapyard | Entered Materials 314 | -10/Materials | Build established: Mutant 405 | -10/Materials | Discovered new exit (range 8) 456 | -10/Materials | Entered Mines 539 | -10/Mines | Lost 3 parts (1p2w) 629 | -10/Mines | A weapon hastily lodged in a ceiling crevice suddenly fell to the ground 988 | -10/Mines | Discovered new exit (range 5) 1011 | -10/Mines | Received a Mining Laser from a helpful Derelict 1048 | -10/Mines | Entered Materials 1048 | -9/Materials | Accompanied by 1 ally 1048 | -9/Materials | Evolved 2 slots: Propulsion x1, Weapon x1 1202 | -9/Materials | Destroyed 7 combat bots 1264 | -9/Materials | Discovered new exit (range 9) 1424 | -9/Materials | Build established: Gunner 1454 | -9/Materials | Entered Mines 1648 | -9/Mines | Deemed a non-threat by the Exiles lab entrance 1649 | -9/Mines | Discovered new exit (range 5) 1672 | -9/Mines | Entered Exiles 1672 | -9/Exiles | Accompanied by 2 allies 1701 | -9/Exiles | Met 8R-AWN 1702 | -9/Exiles | Led the pair of lost Derelicts to a safe place 1748 | -9/Exiles | Met EX-HEX 1783 | -9/Exiles | Met EX-BIN 1800 | -9/Exiles | Aligned with FarCom system 1801 | -9/Exiles | Given EX-Vault access code 1829 | -9/Exiles | Opened EX-Vault 1837 | -9/Exiles | Found AWS/Thermal 1866 | -9/Exiles | Warned to stay clear of 0b10 Research branches 1899 | -9/Exiles | Met EX-DEC 1978 | -9/Exiles | Visited The Gauntlet 2098 | -9/Exiles | Discovered new exit (range 10) 2108 | -9/Exiles | Left Exiles lab with AWS/Thermal 2108 | -9/Exiles | Entered Mines 2212 | -8/Mines | Discovered new exit (range 9) 2226 | -8/Mines | Entered Materials 2226 | -8/Materials | Evolved 2 slots: Utility x1, Weapon x1 2332 | -8/Materials | Discovered new exit (range 15) 2409 | -8/Materials | Discovered new exit (range 9) 2414 | -8/Materials | Build established: Skirmisher 2523 | -8/Materials | Entered Storage 2662 | -8/Storage | Assisted by bots powering up and referring to "LRC-V3" 2961 | -8/Storage | Build established: Commander-Skirmisher 3044 | -8/Storage | Identified exit to Garrison 3048 | -8/Storage | Entered Garrison 3048 | -8/Garrison | Accompanied by 10 allies 3134 | -8/Garrison | Triggered checkpoint 3248 | -8/Garrison | Discovered new exit (range 9) 3270 | -8/Garrison | Triggered checkpoint 3412 | -8/Garrison | Triggered checkpoint 3430 | -8/Garrison | Triggered checkpoint 3476 | -8/Garrison | Garrison Relay disabled 3479 | -8/Garrison | Triggered checkpoint 3515 | -8/Garrison | Installed Relay Interface Framework 3533 | -8/Garrison | Discovered new exit (range 13) 3599 | -8/Garrison | AWS/Thermal suddenly broke down 3707 | -8/Garrison | Entered Recycling 3707 | -8/Recycling | Accompanied by 7 allies 4094 | -8/Recycling | Discovered new exit (range 6) 4163 | -8/Recycling | Scanned before Scraplab entrance 4182 | -8/Recycling | Entered Scraplab 4192 | -8/Recycling | Discovered new exit (range 3) 4219 | -8/Recycling | Entered Scraptown 4219 | -8/Scraptown | Accompanied by 6 allies 4295 | -8/Scraptown | Heard Great Nut preacher, LISTEN AND RECITE! 4306 | -8/Scraptown | Turned away by UFD registrar 4325 | -8/Scraptown | Visited SPCMW 4345 | -8/Scraptown | Visited Fellowship of the Rings 4367 | -8/Scraptown | Visited Spacefarers 4411 | -8/Scraptown | Visited Bundlers 4519 | -8/Scraptown | Build established: Commander-Gunner 4522 | -8/Scraptown | Discovered new exit (range 13) 4591 | -8/Scraptown | Attacked by Scraptown defenders 4696 | -8/Scraptown | Entered Factory 4696 | -6/Factory | Evolved 4 slots: Propulsion x1, Utility x3 4968 | -6/Factory | Discovered new exit (range 15) 4988 | -6/Factory | Build established: Scavenger-Skirmisher 5022 | -6/Factory | Garrison activated, responded to threat 5113 | -6/Factory | Tech Extrapolator generated special schematic: Deep Structural Scanner 5116 | -6/Factory | Identified exit to Garrison 5116 | -6/Factory | Entered Garrison 5139 | -6/Garrison | Triggered checkpoint 5220 | -6/Garrison | Garrison Relay disabled 5244 | -6/Garrison | Destroyed 8 combat bots 5267 | -6/Garrison | Garrison Relay disabled 5391 | -6/Garrison | Triggered checkpoint 5529 | -6/Garrison | Lost 3 parts (2n1u) 5598 | -6/Garrison | Spotted B-75 Beast 5675 | -6/Garrison | Core integrity fell below 50% 5681 | -6/Garrison | Destroyed B-75 Beast 5711 | -6/Garrison | Lost 7 parts (3n1u3w) 5810 | -6/Garrison | Phase Generator disabled 5900 | -6/Garrison | Build established: Mutant 5936 | -6/Garrison | Triggered checkpoint 6104 | -6/Garrison | Spotted Executioner 6126 | -6/Garrison | Destroyed Executioner 6147 | -6/Garrison | Found Prototype Processor 6161 | -6/Garrison | Found Prototype Processor 6171 | -6/Garrison | Identified Exp. Core Analyzer 6250 | -6/Garrison | Destroyed Striker 6275 | -6/Garrison | Destroyed Striker 6484 | -6/Garrison | Build established: Scavenger-Skirmisher 6545 | -6/Garrison | Garrison Relay disabled 6576 | -6/Garrison | Garrison Relay disabled 6623 | -6/Garrison | Discovered new exit (range 7) 7116 | -6/Garrison | Triggered checkpoint 7215 | -6/Garrison | Discovered new exit (range 3) 7241 | -6/Garrison | Spotted B-75 Beast 7251 | -6/Garrison | Spotted B-90 Cyclops 7445 | -6/Garrison | Destroyed B-90 Cyclops 7524 | -6/Garrison | Rewired B-86 Titan 7689 | -6/Garrison | Destroyed B-75 Beast 7771 | -6/Garrison | Found Relay Coupler [Proto] 7793 | -6/Garrison | Found Relay Coupler [Proto] 7802 | -6/Garrison | Found Relay Coupler [Proto] 7815 | -6/Garrison | Found Relay Coupler [Proto] 7901 | -6/Garrison | Expanded RIF knowledge: Signal Jamming 8165 | -6/Garrison | Entered Factory 8165 | -6/Factory | Accompanied by 1 ally 8289 | -6/Factory | Build established: Bothacker-Tank 8577 | -6/Factory | Allied Derelicts emerged from ambush trap array 8865 | -6/Factory | First assault squad dispatched 9048 | -6/Factory | Identified exit to Garrison 9048 | -6/Factory | Entered Garrison 9048 | -6/Garrison | Accompanied by 1 ally 9168 | -6/Garrison | Triggered checkpoint 9258 | -6/Garrison | Garrison Relay disabled 9832 | -6/Garrison | Core integrity fell below 20% 9910 | -6/Garrison | Triggered checkpoint 10049 | -6/Garrison | Triggered checkpoint 10090 | -6/Garrison | Garrison Relay disabled 10139 | -6/Garrison | Discovered new exit (range 10) 10154 | -6/Garrison | Entered Factory 10154 | -5/Factory | Evolved 2 slots: Utility x2 10233 | -5/Factory | Identified Exp. Targeting Computer 10599 | -5/Factory | Identified exit to Garrison 10599 | -5/Factory | Entered Garrison 10643 | -5/Garrison | Triggered checkpoint 11076 | -5/Garrison | Spotted B-75 Beast 11102 | -5/Garrison | Destroyed B-75 Beast 11245 | -5/Garrison | Triggered checkpoint 11277 | -5/Garrison | Triggered checkpoint 11377 | -5/Garrison | Triggered checkpoint 11665 | -5/Garrison | Garrison Relay disabled 11811 | -5/Garrison | Triggered checkpoint 11890 | -5/Garrison | Garrison Relay disabled 12071 | -5/Garrison | Discovered new exit (range 10) 12186 | -5/Garrison | Expanded RIF knowledge: Robot Detection 12209 | -5/Garrison | Triggered checkpoint 12282 | -5/Garrison | Discovered new exit (range 12) 12309 | -5/Garrison | Triggered checkpoint 12437 | -5/Garrison | Rescued a captive Derelict 12438 | -5/Garrison | Rescued a captive Derelict 12991 | -5/Garrison | Expanded RIF knowledge: Structural Interface 13123 | -5/Garrison | Garrison Relay disabled 13299 | -5/Garrison | Build established: Botlord-Tank 13401 | -5/Garrison | Garrison Relay disabled 13475 | -5/Garrison | Triggered checkpoint 13521 | -5/Garrison | Spotted Striker 13521 | -5/Garrison | Spotted Striker 13547 | -5/Garrison | Destroyed Striker 13575 | -5/Garrison | Destroyed Striker 13607 | -5/Garrison | Rewired Striker 13612 | -5/Garrison | Rewired Striker 13698 | -5/Garrison | Discovered new exit (range 8) 13711 | -5/Garrison | Entered Factory 13711 | -5/Factory | Accompanied by 2 allies 14047 | -5/Factory | Central database locked down 14311 | -5/Factory | First assault squad dispatched 14415 | -5/Factory | Identified exit to Garrison 14415 | -5/Factory | Entered Garrison 14499 | -5/Garrison | Triggered checkpoint 14504 | -5/Garrison | Garrison Relay disabled 14551 | -5/Garrison | Triggered checkpoint 14721 | -5/Garrison | Triggered checkpoint 14807 | -5/Garrison | Spotted B-75 Beast 14821 | -5/Garrison | Lost 5 allies 14840 | -5/Garrison | Destroyed B-75 Beast 14865 | -5/Garrison | Lost 5 parts (2p2u1w) 14984 | -5/Garrison | Discovered new exit (range 14) 15003 | -5/Garrison | Spotted B-75 Beast 15049 | -5/Garrison | Destroyed B-75 Beast 15069 | -5/Garrison | Build established: Botlord-Gunner 15077 | -5/Garrison | Lost 5 parts (1p2n1u1w) 15106 | -5/Garrison | Found Relay Coupler [Proto] 15108 | -5/Garrison | Found Relay Coupler [Proto] 15111 | -5/Garrison | Found Relay Coupler [Proto] 15114 | -5/Garrison | Found Relay Coupler [Proto] 15503 | -5/Garrison | Triggered checkpoint 15770 | -5/Garrison | Discovered new exit (range 10) 15933 | -5/Garrison | Garrison Relay disabled 16625 | -5/Garrison | Spotted B-90 Cyclops 16664 | -5/Garrison | Rewired B-86 Titan 16672 | -5/Garrison | Assimilated Cyclops 6a with formatsys_high 16944 | -5/Garrison | Spotted B-75 Beast 16976 | -5/Garrison | Destroyed B-75 Beast 17041 | -5/Garrison | Phase Generator disabled 17092 | -5/Garrison | Expanded RIF knowledge: Autoassimilate 17190 | -5/Garrison | Found Fusion Bomb Launcher 17244 | -5/Garrison | Discovered new exit (range 10) 17295 | -5/Garrison | Triggered checkpoint 17538 | -5/Garrison | Garrison Relay disabled 17591 | -5/Garrison | Garrison Relay disabled 17872 | -5/Garrison | Expanded RIF knowledge: Command Fork 18289 | -5/Garrison | Entered Factory 18289 | -4/Factory | Evolved 2 slots: Power x1, Utility x1 18326 | -4/Factory | Found Prototype Processor 18330 | -4/Factory | Found Prototype Processor 18330 | -4/Factory | Identified Exp. Signal Interpreter (x2) 18539 | -4/Factory | First assault squad dispatched 18647 | -4/Factory | Garrison activated, responded to threat 18818 | -4/Factory | Identified exit to Garrison 18818 | -4/Factory | Entered Garrison 18942 | -4/Garrison | Triggered checkpoint 18970 | -4/Garrison | Garrison Relay disabled 19032 | -4/Garrison | Triggered checkpoint 19108 | -4/Garrison | Triggered checkpoint 19145 | -4/Garrison | Lost 5 allies 19452 | -4/Garrison | Expanded RIF knowledge: Patrol Navigation 19481 | -4/Garrison | Build established: Botlord-Tank 19617 | -4/Garrison | Discovered new exit (range 5) 19644 | -4/Garrison | Triggered checkpoint 19664 | -4/Garrison | Garrison Relay disabled 19852 | -4/Garrison | Garrison Relay disabled 19953 | -4/Garrison | Spotted Executioner 19967 | -4/Garrison | Allies destroyed Executioner 19971 | -4/Garrison | Found Prototype Device 19972 | -4/Garrison | Identified Adv. Kinecellerator 19990 | -4/Garrison | Found Exp. Core Analyzer 20004 | -4/Garrison | Found Exp. Core Analyzer 20030 | -4/Garrison | Rewired Striker 20067 | -4/Garrison | Build established: Botlord-Gunner 20196 | -4/Garrison | Triggered checkpoint 20308 | -4/Garrison | Garrison Relay disabled 20432 | -4/Garrison | Triggered checkpoint 20515 | -4/Garrison | Discovered new exit (range 9) 20679 | -4/Garrison | Found Relay Coupler [Proto] 20686 | -4/Garrison | Found Relay Coupler [Proto] 20890 | -4/Garrison | Garrison Relay disabled 20929 | -4/Garrison | Triggered checkpoint 21205 | -4/Garrison | Discovered new exit (range 15) 21334 | -4/Garrison | Entered Research 21334 | -3/Research | Accompanied by 3 allies 21334 | -3/Research | Evolved 2 slots: Utility x2 21378 | -3/Research | Spotted B-86 Titan 21379 | -3/Research | Autoassimilated Titan 8a with RIF 21475 | -3/Research | Lost 3 allies 21584 | -3/Research | First assault squad dispatched 22122 | -3/Research | Found Prototype Device 22122 | -3/Research | Identified Exp. Thermal Shield 22303 | -3/Research | Central database locked down 22331 | -3/Research | Identified exit to Garrison 22331 | -3/Research | Entered Garrison 22454 | -3/Garrison | Garrison Relay disabled 22491 | -3/Garrison | Triggered checkpoint 22712 | -3/Garrison | Lost 6 allies 22767 | -3/Garrison | Lost 11 parts (2p2n4u3w) 22830 | -3/Garrison | Core integrity fell below 50% 22871 | -3/Garrison | Lost 3 parts (1u2w) 23177 | -3/Garrison | Spotted B-86 Titan 23314 | -3/Garrison | Build established: Scavenger-Gunner 23336 | -3/Garrison | Destroyed B-86 Titan 23369 | -3/Garrison | Found Hvy. Reflective Plating 23451 | -3/Garrison | Triggered checkpoint 23540 | -3/Garrison | Discovered new exit (range 13) 23615 | -3/Garrison | Triggered checkpoint 23723 | -3/Garrison | Garrison Relay disabled 23737 | -3/Garrison | Learned Research security intel 23761 | -3/Garrison | Garrison Relay disabled 23795 | -3/Garrison | Triggered checkpoint 23845 | -3/Garrison | Triggered checkpoint 23895 | -3/Garrison | Garrison Relay disabled 23922 | -3/Garrison | Expanded RIF knowledge: Alert ID Control 23986 | -3/Garrison | Discovered new exit (range 10) 24100 | -3/Garrison | Discovered new exit (range 9) 24215 | -3/Garrison | Triggered checkpoint 24237 | -3/Garrison | Garrison Relay disabled 24768 | -3/Garrison | Entered Research 24768 | -2/Research | Accompanied by 2 allies 24768 | -2/Research | Evolved 2 slots: Utility x2 25210 | -2/Research | Crushed by falling debris 25211 | -2/Research | Crushed by falling debris 25211 | -2/Research | System corruption reached 10% 25225 | -2/Research | Cargo convoy interrupted 25242 | -2/Research | Lost 4 parts (1p3u) 25310 | -2/Research | P-80 Master assimilated allied RG-V47(b) 25515 | -2/Research | Build established: Scavenger-Tank 25580 | -2/Research | Spotted B-90 Cyclops 25593 | -2/Research | Destroyed B-90 Cyclops 25839 | -2/Research | Lost 10 parts (1p1n4u4w) 25865 | -2/Research | Destroyed 15 combat bots 26018 | -2/Research | First assault squad dispatched 26260 | -2/Research | Lost 3 parts (1p1n1w) 26285 | -2/Research | Discovered new exit (range 16) 26326 | -2/Research | Identified exit to Quarantine 26361 | -2/Research | Build established: Botlord-Tank 26591 | -2/Research | Crushed by falling debris 26591 | -2/Research | System corruption reached 30% 26592 | -2/Research | Crushed by falling debris 26593 | -2/Research | Crushed by falling debris 26593 | -2/Research | Core integrity fell below 50% 26624 | -2/Research | Lost 6 parts (5u1w) 26929 | -2/Research | Crushed by falling debris 26960 | -2/Research | Lost 3 parts (3u) 27288 | -2/Research | Garrison activated, responded to threat 27480 | -2/Research | Core integrity fell below 20% 27494 | -2/Research | Destroyed self with Fusion Bomb Launcher Last Messages --------------- 27489_ Hvy. Laser destroyed. 27490_ 0B/W5F2NI I>%DZJILA3ZRVS 27490_ Acquired Adv. Remote Datajack. 27491_ Hds. Centrium Heavy Treads destroyed. 27491_ Phase Gun destroyed. 27491_ M-36 Artificer repairs G-73 Enforcer. 27492_ Adv. Heat Sink melted. 27492_ G-73 Enforcer destroyed. 27492_ U-05 Engineer destroyed. 27492_ G-73 Enforcer destroyed. 27492_ Research Mainframe disabled. 27493_ Acquired 29 matter. 27494_ G-73 Enforcer destroyed. 27494_ Destroyed Lgt. Quantum Reactor. 27494_ G-73 Enforcer destroyed. 27494_ Destroyed Adv. Heat Sink. 27494_ G-73 Enforcer destroyed. 27494_ M-36 Artificer destroyed. [Achievement: 50k Club] [Achievement: Rambo] Map ----- +----------------------------------------------------+ | ??????????????????????????????# #= #???????? | | ??????????????????????????????##"= = ####### | | ???????????????????????????????## *% | | ????????????????????????????????# =! | | ????????????????????????????????# ! ! | | ????????????????????????????????# ####### | | ????????????????????????????????# % #????????? | | ????????????????????????????????####+#####???????? | | ????????????????????????????????# !#???????? | | ????????????????????????????????# ==#???????? | | ????????????????????????????????# "" %!%#???????? | | ????????????????????????????????#" %= = #???????? | | ????????????????????????????????#"T=%!%= #???????? | | ????????????????????????????????#""" != #???????? | | ????????????????????????????????# "" #???????? | | ????????????????????????????????# ! #???????? | | ???????????????????????????????## #???????? | | ??????????????????????????????##"#########???????? | | ?????????????????????????????## ##???????????????? | | ????????????????????????????#####????????????????? | | ??????????????????????##########?????????????????? | | ????????????????????### #?????????????????? | | ???????????????###### * #?????????????????? | | ???????????????# [=g=g%% ?????????????????? | | ???????????????# *!g g[ [ ?????????????????? | | ???????????????# g*!!@%![ % ?????????????????? | | ???????????????# " *%%* =#?????????????????? | | ???????????????# " =%! ! ?????????????????? | | ???????????????# " /[%= ##########????????? | | ???????????????# " "=*== %! #????????? | | ???????????????# #????????? | | ???????????????# # #????????? | | ???????????????# % ## #????????? | | ???????????????# ## #????????? | | ???????????????? ! ## !% #????????? | | ????????????????#+####+##############/###????????? | | ????????????????????? ???????????? ??????Y??? | | ????????????????????? ?????????? ???????? | | ???????????????????? ????????? ?????? | | ???????????????????? ??????? ""G""b #???? | | ????????????????????????????# " " #???? | | ????????????????????????????# #???? | | ????????????????????????????# #???? | | ????????????????????????????# #???? | | ????????????????????????????# ? #???? | | ?????????????????????????????? ? #???? | | ??????????????????????????????? ??""" #???? | | ???????????????????????????????????"" #???? | | ????????????????????????????????????? ????? | | ????????????????????????????????????? ???????? | +----------------------------------------------------+ Best States ------------- Heat Dissipation 103 Energy Generation 39 Energy Capacity 565 Matter Stores 300 Matter Capacity 300 Sight Range 23 Terrain Scan Density 10 Armor Coverage 2400 Resistance: TH 30 Resistance: EM 25 Core Shielding 30 Melee Speed Boost 50 Evasion (%) 55 Targeting Accuracy 12 Melee Accuracy 16 Launcher Accuracy 30 Target Analysis 12 Core Analysis 12 Armor Integrity Analysis 30 Recoil Reduction 4 Energy Filtering 50 Kinecelleration 50 Relay Coupler Types 3 Relay Coupler Value 89 Authchip Count 1 Item Schematics ----------------- Mak. Light Armor Plating | -6/Factory | Extrapolated Ripper | -6/Factory | Extrapolated Beamcaster | -6/Factory | Extrapolated Deep Structural Scanner | -6/Factory | Extrapolated Mak. Flight Unit | -6/Garrison | Extrapolated Mak. Coolant Network | -6/Garrison | Extrapolated Bore Cannon | -6/Garrison | Extrapolated Mak. Power Source | -6/Garrison | Extrapolated 0b10 Decoder Chip [Scout] | -6/Garrison | Extrapolated Mak. Heavy Armor Plating | -6/Garrison | Extrapolated Mak. Thermal Plating | -6/Garrison | Extrapolated Hvy. Beamcaster | -6/Factory | Extrapolated 0b10 Decoder Chip [Generic] | -6/Factory | Extrapolated 0b10 Decoder Chip [Skirmisher] | -6/Factory | Extrapolated Mak. Medium Armor Plating | -6/Garrison | Extrapolated Mak. Ablative Armor | -6/Garrison | Extrapolated Mak. Targeting Computer | -5/Factory | Extrapolated Robot Schematics ------------------ None Fabricated ------------ Nothing Repaired ---------- Nothing Studied --------- Hvy. Assault Rifle | -9/Materials | Hacked Autogun | -9/Materials | Hacked Com. Wheel | -9/Materials | Hacked Lgt. Treads | -6/Factory | Hacked Hyp. Gauss Rifle | -6/Factory | Hacked Chainsword | -6/Factory | Hacked Imp. Plasma Cutter | -5/Factory | Hacked Arm. Heavy Treads | -3/Research | Hacked Alien Tech Used ----------------- None Achievements -------------- 50k Club Giant Slayer Hackerman Powerful Protocols Rambo This Is My Hole Challenges ------------ None Game ------ Seed GrapheneForceFragment Manual? 0 Play Time 03:46:30 Cumulative 145.4 hours Start 2026.02.26 @ 10:37:55 End 2026.03.09 @ 14:27:13 Sessions 15 Manual Loads 0 Difficulty Rogue Special Mode None Game No. 163 Rogue 163 Adventurer 0 Explorer 0 Win Type - Total 2 Types 2/0/0/0/0/0/0/0/0/0 Lore% 76 Gallery% 62 Achievement% 48 Wizard Run 0 Options --------- Layout 1 ASCII 0 Keyboard 0 Movement Mouse Keybinds 0 Fullscreen 1 Font 32/SmallcapsGlow Map View 50x35 Zoom Use 0% Tactical HUD 1 Map Filters NONE Filters NONE Steam 1 RUN: 71ed519d-ad02-4e01-af84-ba93fefc4926